lending/lending_fUSD_20251124
["ID","MTS","AMOUNT","RATE_DAILY","PERIOD"]
[394853225,1764019499177,214.454454,0.00042027,50]
[394853226,1764019499786,214.454454,0.00042027,50]
[394853227,1764019500271,214.454454,0.00042027,50]
[394853228,1764019500394,214.454454,0.00042027,50]
[394853229,1764019500700,214.454454,0.00042027,50]
[394853230,1764019501043,214.454454,0.00042027,50]
[394853231,1764019501367,214.454454,0.00042027,50]
[394853232,1764019501714,214.454454,0.00042027,50]
[394853233,1764019502003,214.454454,0.00042027,50]
[394853234,1764019502327,214.454454,0.00042027,50]
[394853235,1764019502723,214.454454,0.00042027,50]
[394853236,1764019503027,214.454454,0.00042027,50]
[394853237,1764019503322,214.454454,0.00042027,50]
[394853238,1764019503642,214.454454,0.00042027,50]
[394853239,1764019504026,214.454447,0.00042027,50]
[394853240,1764019509238,165.20265906,0.00042027,30]
[394853241,1764019510203,159.999989,0.00042027,120]
[394853242,1764019510451,151.0,0.00042027,50]
[394853243,1764019510731,151.0,0.00042027,50]
[394853244,1764019510841,3661.84917677,0.000154,2]
[394853245,1764019511015,151.0,0.00042027,50]
[394853246,1764019511097,537.86806602,0.00042027,30]
[394853247,1764019512192,402.17896231,0.00042027,30]
[394853248,1764019512275,616.88287545,0.00042027,60]
[394853249,1764019513245,339.30970385,0.00042027,91]
[394853250,1764019513345,257.7646776,0.00042027,30]
[394853251,1764019514735,151.0,0.00042027,50]
[394853252,1764019514874,922.43320196,0.00042027,30]
[394853253,1764019515010,151.0,0.00042027,50]
[394853254,1764019515307,151.0,0.00042027,50]
[394853255,1764019515599,151.0,0.00042027,50]
[394853256,1764019515666,283.513663,0.00042027,50]
[394853257,1764019515740,207.172801,0.00042027,50]
[394853258,1764019515893,151.0,0.00042027,50]
[394853259,1764019516043,207.172801,0.00042027,50]
[394853260,1764019516217,151.0,0.00042027,50]
[394853261,1764019516333,207.172801,0.00042027,50]
[394853262,1764019516471,655.52209036,0.00042027,120]
[394853263,1764019516536,151.0,0.00042027,50]
[394853264,1764019516660,207.172801,0.00042027,50]
[394853265,1764019516839,151.0,0.00042027,50]
[394853266,1764019516968,207.172801,0.00042027,50]
[394853267,1764019517132,151.0,0.00042027,50]
[394853268,1764019517253,207.172801,0.00042027,50]
[394853269,1764019517460,151.0,0.00042027,50]
[394853270,1764019517545,207.172801,0.00042027,50]
[394853271,1764019517708,1075.30832095,0.00042027,30]
[394853272,1764019517775,434.03724778,0.00042027,120]
[394853273,1764019517834,151.0,0.00042027,50]
[394853274,1764019517913,207.172801,0.00042027,50]
[394853275,1764019518199,207.172801,0.00042027,50]
[394853276,1764019518274,151.0,0.00042027,50]
[394853277,1764019518447,206.851406,0.00042027,50]
[394853278,1764019518717,207.172801,0.00042027,50]
[394853279,1764019519007,207.172801,0.00042027,50]
[394853280,1764019519289,207.172801,0.00042027,50]
[394853281,1764019519582,207.172801,0.00042027,50]
[394853282,1764019519726,151.0,0.00042027,50]
[394853283,1764019519876,207.172801,0.00042027,50]
[394853284,1764019520000,869.24929715,0.00042027,120]
[394853285,1764019520073,151.0,0.00042027,50]
[394853286,1764019520150,207.172801,0.00042027,50]
[394853287,1764019520368,151.0,0.00042027,50]
[394853288,1764019520459,207.172801,0.00042027,50]
[394853289,1764019520679,262.227764,0.00042027,50]
[394853290,1764019520773,207.172801,0.00042027,50]
[394853291,1764019520864,554.68956789,0.00042027,120]
[394853292,1764019521625,207.172801,0.00042027,50]
[394853293,1764019521924,207.172801,0.00042027,50]
[394853294,1764019522222,207.172794,0.00042027,50]
[394853295,1764019522440,151.0,0.00042027,50]
[394853296,1764019522741,183.958218,0.00042027,50]
[394853297,1764019523004,151.0,0.00042027,50]
[394853298,1764019523296,151.0,0.00042027,50]
[394853299,1764019523581,151.0,0.00042027,50]
[394853300,1764019523674,778.23734564,0.00042027,30]
[394853301,1764019523862,173.221069,0.00042027,50]
[394853302,1764019525171,151.0,0.00042027,50]
[394853303,1764019525329,252.28683523,0.00042027,120]
[394853304,1764019525479,151.0,0.00042027,50]
[394853305,1764019525798,151.0,0.00042027,50]
[394853306,1764019525872,952.52743793,0.00042027,120]
[394853307,1764019526485,151.0,0.00042027,30]
[394853308,1764019526780,155.546512,0.00042027,30]
[394853309,1764019528001,324.79036217,0.00042027,30]
[394853310,1764019529534,151.0,0.00042027,50]
[394853311,1764019529824,156.655198,0.00042027,50]
[394853312,1764019530036,270.567206,0.00042027,50]
[394853313,1764019530153,151.0,0.00042027,50]
[394853314,1764019530343,270.567206,0.00042027,50]
[394853315,1764019530455,151.0,0.00042027,50]
[394853316,1764019530633,270.567206,0.00042027,50]
[394853317,1764019530785,151.0,0.00042027,50]
[394853318,1764019530924,270.567206,0.00042027,50]
[394853319,1764019531079,151.0,0.00042027,50]
[394853320,1764019531226,270.567206,0.00042027,50]
[394853321,1764019531413,151.0,0.00042027,50]
[394853322,1764019531515,270.567206,0.00042027,50]
[394853323,1764019531582,276.00377709,0.00042027,120]
[394853324,1764019531699,161.731428,0.00042027,50]
[394853325,1764019531985,270.567206,0.00042027,50]
[394853326,1764019532116,270.567206,0.00042027,50]
[394853327,1764019532405,270.567206,0.00042027,50]
[394853328,1764019532705,270.567206,0.00042027,50]
[394853329,1764019532997,270.567206,0.00042027,50]
[394853330,1764019533284,270.567206,0.00042027,50]
[394853331,1764019533576,270.567206,0.00042027,50]
[394853332,1764019533838,151.0,0.00042027,50]
[394853333,1764019533911,270.567206,0.00042027,50]
[394853334,1764019534135,151.0,0.00042027,50]
[394853335,1764019534200,270.567206,0.00042027,50]
[394853336,1764019534425,151.0,0.00042027,50]
[394853337,1764019534506,270.567206,0.00042027,50]
[394853338,1764019534716,157.538316,0.00042027,50]
[394853339,1764019534855,270.567206,0.00042027,50]
[394853340,1764019535141,270.567206,0.00042027,50]
[394853341,1764019535468,270.567206,0.00042027,50]
[394853342,1764019535751,270.567208,0.00042027,50]
[394853343,1764019537328,446.999998,0.00042027,120]
[394853344,1764019537951,1712.16865533,0.00042027,30]
[394853345,1764019540247,224.34746954,0.00042027,30]
[394853346,1764019540783,770.96551598,0.00042027,30]
[394853347,1764019540959,243.02935437,0.00042027,120]
[394853348,1764019541025,423.99203881,0.00042027,120]
[394853349,1764019543178,213.67715225,0.00042027,120]
[394853350,1764019543678,200.06957156,0.00042027,120]
[394853351,1764019544275,1014.34728133,0.00042027,120]
[394853352,1764019544595,156.005857,0.00042027,50]
[394853353,1764019546083,186.43576408,0.00042027,120]
[394853354,1764019546322,460.65749543,0.00042027,120]
[394853355,1764019549121,903.33984146,0.00042027,30]
[394853356,1764019550133,254.40069747,0.00042027,30]
[394853357,1764019556720,912.16842885,0.00042027,30]
[394853358,1764019559186,1001.80056517,0.00042027,30]
[394853359,1764019559446,511.83917478,0.00042027,90]
[394853360,1764019560755,200.0,0.00042027,30]
[394853361,1764019561366,879.7130918,0.00042027,120]
[394853362,1764019562402,339.55055002,0.00042027,30]
[394853363,1764019565606,982.53465672,0.00042027,30]
[394853364,1764019566632,151.0,0.00042027,50]
[394853365,1764019566696,151.0,0.00042027,50]
[394853366,1764019566944,151.0,0.00042027,50]
[394853367,1764019567019,161.908077,0.00042027,50]
[394853368,1764019567280,151.0,0.00042027,50]
[394853369,1764019567351,151.0,0.00042027,50]
[394853370,1764019567424,151.0,0.00042027,50]
[394853371,1764019567490,383.4422483,0.00042027,120]
[394853372,1764019567566,151.0,0.00042027,50]
[394853373,1764019567885,151.0,0.00042027,50]
[394853374,1764019568188,164.463993,0.00042027,50]
[394853375,1764019570469,219.90273721,0.00042027,30]
[394853376,1764019570586,392.68854425,0.00042027,120]
[394853377,1764019570645,685.34090711,0.00042027,30]
[394853378,1764019571049,1015.33730597,0.00042027,30]
[394853379,1764019571561,689.29476357,0.00042027,120]
[394853380,1764019575138,151.0,0.00042027,50]
[394853381,1764019575435,151.0,0.00042027,50]
[394853382,1764019575737,151.0,0.00042027,50]
[394853383,1764019575872,151.0,0.00042027,50]
[394853384,1764019576028,151.0,0.00042027,50]
[394853385,1764019576187,151.0,0.00042027,50]
[394853386,1764019576557,151.0,0.00042027,50]
[394853387,1764019576863,151.0,0.00042027,50]
[394853388,1764019577158,218.717625,0.00042027,50]
[394853389,1764019577363,743.10411747,0.00042027,120]
[394853390,1764019578405,151.0,0.00042027,50]
[394853391,1764019578501,236.92090381,0.00042027,120]
[394853393,1764019581542,266.41,0.00021486,30]
[394853394,1764019581991,151.0,0.00042027,50]
[394853395,1764019582291,151.0,0.00042027,50]
[394853396,1764019582619,151.0,0.00042027,50]
[394853397,1764019582913,151.0,0.00042027,50]
[394853398,1764019582973,151.0,0.00042027,50]
[394853399,1764019583226,151.0,0.00042027,50]
[394853400,1764019583293,151.0,0.00042027,50]
[394853401,1764019583531,151.0,0.00042027,50]
[394853402,1764019583595,151.0,0.00042027,50]
[394853403,1764019583825,151.0,0.00042027,50]
[394853404,1764019583891,151.0,0.00042027,50]
[394853405,1764019584130,151.0,0.00042027,50]
[394853406,1764019584383,151.0,0.00042027,50]
[394853407,1764019584492,277.387635,0.00042027,50]
[394853408,1764019584565,151.0,0.00042027,50]
[394853409,1764019584751,151.0,0.00042027,50]
[394853410,1764019585058,151.0,0.00042027,50]
[394853411,1764019585358,165.744846,0.00042027,50]
[394853412,1764019585561,370.98039979,0.00042027,30]
[394853413,1764019586297,272.154874,0.00042027,50]
[394853414,1764019586596,272.154874,0.00042027,50]
[394853415,1764019586664,151.0,0.00042027,50]
[394853416,1764019586886,272.154874,0.00042027,50]
[394853417,1764019586962,151.0,0.00042027,50]
[394853418,1764019587178,272.154874,0.00042027,50]
[394853419,1764019587255,167.924841,0.00042027,50]
[394853420,1764019587496,272.154874,0.00042027,50]
[394853421,1764019587621,151.0,0.00042027,50]
[394853422,1764019587800,272.154874,0.00042027,50]
[394853423,1764019587910,259.841727,0.00042027,50]
[394853424,1764019588092,272.154874,0.00042027,50]
[394853425,1764019588410,272.154874,0.00042027,50]
[394853426,1764019588711,272.154874,0.00042027,50]
[394853427,1764019588806,151.0,0.00042027,50]
[394853428,1764019589025,272.154874,0.00042027,50]
[394853429,1764019589320,272.154874,0.00042027,50]
[394853430,1764019589389,151.0,0.00042027,50]
[394853431,1764019589663,272.154874,0.00042027,50]
[394853432,1764019589897,151.0,0.00042027,50]
[394853433,1764019589960,151.0,0.00042027,50]
[394853434,1764019590031,272.154874,0.00042027,50]
[394853435,1764019590614,272.154874,0.00042027,50]
[394853436,1764019590949,272.154874,0.00042027,50]
[394853437,1764019591243,272.154874,0.00042027,50]
[394853438,1764019591546,272.154874,0.00042027,50]
[394853439,1764019591842,272.154874,0.00042027,50]
[394853440,1764019592134,272.154874,0.00042027,50]
[394853441,1764019592474,272.154874,0.00042027,50]
[394853442,1764019596341,151.0,0.00042027,50]
[394853443,1764019596631,151.0,0.00042027,50]
[394853444,1764019596910,151.0,0.00042027,50]
[394853445,1764019597189,151.0,0.00042027,50]
[394853446,1764019597477,151.0,0.00042027,50]
[394853447,1764019597970,160.243049,0.00042027,50]
[394853448,1764019598062,206.276867,0.00042027,50]
[394853449,1764019598284,206.276867,0.00042027,50]
[394853450,1764019598575,206.276867,0.00042027,50]
[394853451,1764019598865,206.276867,0.00042027,50]
[394853452,1764019599080,282.320073,0.00042027,50]
[394853453,1764019599150,206.276867,0.00042027,50]
[394853454,1764019599369,282.320073,0.00042027,50]
[394853455,1764019599431,230.19729734,0.00042027,30]
[394853456,1764019599492,206.276867,0.00042027,50]
[394853457,1764019599566,151.0,0.00042027,50]
[394853458,1764019599677,282.320073,0.00042027,50]
[394853459,1764019599746,206.276867,0.00042027,50]
[394853460,1764019599852,151.0,0.00042027,50]
[394853463,1764019600180,282.320073,0.00042027,50]
[394853464,1764019600329,206.276867,0.00042027,50]
[394853465,1764019600405,282.320073,0.00042027,50]
[394853466,1764019600468,157.444963,0.00042027,50]
[394853467,1764019600532,206.276867,0.00042027,50]
[394853468,1764019600609,282.320073,0.00042027,50]
[394853469,1764019600671,206.276867,0.00042027,50]
[394853470,1764019600803,282.320073,0.00042027,50]
[394853471,1764019600882,206.276867,0.00042027,50]
[394853472,1764019601085,282.320073,0.00042027,50]
[394853473,1764019601150,206.276867,0.00042027,50]
[394853474,1764019601363,282.320073,0.00042027,50]
[394853475,1764019601427,206.276867,0.00042027,50]
[394853476,1764019601641,282.320073,0.00042027,50]
[394853477,1764019601731,206.276867,0.00042027,50]
[394853478,1764019601938,282.320073,0.00042027,50]
[394853479,1764019602021,206.276867,0.00042027,50]
[394853480,1764019602274,282.320073,0.00042027,50]
[394853481,1764019602348,206.276867,0.00042027,50]
[394853482,1764019602572,282.320073,0.00042027,50]
[394853483,1764019602647,206.276867,0.00042027,50]
[394853484,1764019602847,282.320073,0.00042027,50]
[394853485,1764019602926,206.276867,0.00042027,50]
[394853486,1764019603174,282.320073,0.00042027,50]
[394853487,1764019603260,206.276867,0.00042027,50]
[394853488,1764019603459,206.276858,0.00042027,50]
[394853489,1764019603542,282.320073,0.00042027,50]
[394853490,1764019603753,282.320073,0.00042027,50]
[394853491,1764019604037,282.320073,0.00042027,50]
[394853492,1764019604343,282.320073,0.00042027,50]
[394853493,1764019604629,282.320081,0.00042027,50]
[394853494,1764019610447,151.0,0.00042027,50]
[394853495,1764019610534,151.0,0.00042027,50]
[394853496,1764019610789,151.0,0.00042027,50]
[394853497,1764019611077,151.0,0.00042027,50]
[394853498,1764019611356,151.0,0.00042027,50]
[394853499,1764019614865,500.0,0.00042027,30]
[394853500,1764019615594,156.47543597,0.00042027,120]
[394853501,1764019616117,151.0,0.00042027,50]
[394853502,1764019616194,151.0,0.00042027,50]
[394853503,1764019616434,151.0,0.00042027,50]
[394853504,1764019616743,151.0,0.00042027,50]
[394853505,1764019617017,195.187803,0.00042027,50]
[394853506,1764019620336,510.88250394,0.00042027,30]
[394853507,1764019620677,151.0,0.00042027,50]
[394853508,1764019620785,151.0,0.00042027,50]
[394853509,1764019621077,151.0,0.00042027,50]
[394853510,1764019621379,151.0,0.00042027,50]
[394853511,1764019621664,151.0,0.00042027,50]
[394853512,1764019621957,151.0,0.00042027,50]
[394853513,1764019622254,151.0,0.00042027,50]
[394853514,1764019622551,220.693835,0.00042027,50]
[394853515,1764019625090,299.35111458,0.00042027,120]
[394853516,1764019631949,151.378803,0.00042027,50]
[394853517,1764019632252,151.378803,0.00042027,50]
[394853518,1764019632538,151.378803,0.00042027,50]
[394853519,1764019632822,151.378803,0.00042027,50]
[394853520,1764019633105,151.378803,0.00042027,50]
[394853521,1764019633391,151.378803,0.00042027,50]
[394853522,1764019633672,151.378803,0.00042027,50]
[394853523,1764019633987,151.378803,0.00042027,50]
[394853524,1764019634268,151.378803,0.00042027,50]
[394853525,1764019634556,151.378803,0.00042027,50]
[394853526,1764019634830,151.378803,0.00042027,50]
[394853527,1764019635119,151.378803,0.00042027,50]
[394853528,1764019635406,151.378803,0.00042027,50]
[394853529,1764019635697,151.378803,0.00042027,50]
[394853530,1764019635986,151.378803,0.00042027,50]
[394853531,1764019636296,151.378803,0.00042027,50]
[394853532,1764019636588,151.378803,0.00042027,50]
[394853533,1764019636881,151.378803,0.00042027,50]
[394853534,1764019637196,151.378803,0.00042027,50]
[394853535,1764019637520,151.378798,0.00042027,50]
[394853536,1764019640639,250.0,0.00042027,120]
[394853537,1764019641304,259.25,0.00042027,120]
[394853538,1764019641870,268.84225,0.00042027,120]
[394853539,1764019643417,1068.76330025,0.00042027,30]
[394853546,1764019647150,520.16750305,0.00042027,120]
[394853547,1764019647665,246.20305018,0.00042027,120]
[394853548,1764019648233,869.26543253,0.00042027,120]
[394853549,1764019652396,1325.5884782,0.00042027,120]
[394853550,1764019653108,151.0,0.00042027,50]
[394853551,1764019653165,513.20455812,0.00042027,120]
[394853552,1764019653417,151.0,0.00042027,50]
[394853553,1764019653724,151.0,0.00042027,50]
[394853554,1764019654000,151.0,0.00042027,50]
[394853555,1764019654268,151.0,0.00042027,50]
[394853556,1764019654330,151.0,0.00042027,50]
[394853557,1764019654571,158.034121,0.00042027,50]
[394853558,1764019654631,151.0,0.00042027,50]
[394853559,1764019654789,151.0,0.00042027,50]
[394853560,1764019654861,151.0,0.00042027,50]
[394853561,1764019655081,151.0,0.00042027,50]
[394853562,1764019655142,151.0,0.00042027,50]
[394853563,1764019655202,151.0,0.00042027,50]
[394853564,1764019655396,151.0,0.00042027,50]
[394853565,1764019655456,151.0,0.00042027,50]
[394853566,1764019655520,241.847136,0.00042027,50]
[394853567,1764019655687,151.0,0.00042027,50]
[394853568,1764019655750,151.0,0.00042027,50]
[394853569,1764019655987,151.0,0.00042027,50]
[394853570,1764019656290,151.0,0.00042027,50]
[394853571,1764019656590,151.0,0.00042027,50]
[394853572,1764019656868,151.0,0.00042027,50]
[394853573,1764019657175,151.0,0.00042027,50]
[394853574,1764019657484,199.347392,0.00042027,50]
[394853575,1764019658259,150.28983069,0.00042027,120]
[394853576,1764019658702,912.58972221,0.00042027,120]
[394853577,1764019659219,805.5669348,0.00042027,120]
[394853578,1764019659465,972.72587576,0.00042027,120]
[394853579,1764019660106,1029.74792549,0.00042027,120]
[394853580,1764019660727,1026.04991181,0.00042027,120]
[394853581,1764019661293,512.3787867,0.00042027,30]
[394853582,1764019663012,655.0648016,0.00042027,30]
[394853583,1764019665044,997.0,0.00042027,30]
[394853584,1764019665362,874.23737271,0.00042027,120]
[394853585,1764019665720,355.93327993,0.00042027,31]
[394853586,1764019667172,152.948041,0.00042027,50]
[394853587,1764019671571,244.35977815,0.00042027,30]
[394853588,1764019673022,489.22501524,0.00042027,30]
[394853590,1764019677977,726.27085819,0.00042027,60]
[394853591,1764019680130,742.06463495,0.00042027,30]
[394853592,1764019680649,933.29416356,0.00042027,30]
[394853593,1764019681347,907.7104769,0.00042027,30]
[394853594,1764019684264,409.56763047,0.00042027,120]
[394853595,1764019690496,151.0,0.00042027,50]
[394853596,1764019690783,151.0,0.00042027,50]
[394853597,1764019691181,187.833065,0.00042027,50]
[394853598,1764019692612,785.62984447,0.00042027,120]
[394853599,1764019694162,211.035491,0.00042027,50]
[394853600,1764019694456,211.035491,0.00042027,50]
[394853601,1764019694741,211.035491,0.00042027,50]
[394853602,1764019695038,211.035491,0.00042027,50]
[394853603,1764019695336,211.035491,0.00042027,50]
[394853604,1764019695737,211.035491,0.00042027,50]
[394853605,1764019696054,211.035491,0.00042027,50]
[394853606,1764019696377,211.035491,0.00042027,50]
[394853607,1764019696685,211.035491,0.00042027,50]
[394853608,1764019696978,211.035491,0.00042027,50]
[394853609,1764019697281,211.035491,0.00042027,50]
[394853610,1764019697608,211.035491,0.00042027,50]
[394853611,1764019697910,211.035491,0.00042027,50]
[394853612,1764019698221,211.035491,0.00042027,50]
[394853613,1764019698516,211.035491,0.00042027,50]
[394853614,1764019698654,701.23131824,0.00042027,60]
[394853615,1764019698841,211.035491,0.00042027,50]
[394853616,1764019699129,211.035491,0.00042027,50]
[394853617,1764019699428,211.035491,0.00042027,50]
[394853618,1764019699726,211.035491,0.00042027,50]
[394853619,1764019699976,215.46399536,0.00042027,30]
[394853620,1764019700040,211.035486,0.00042027,50]
[394853621,1764019700102,151.0,0.00042027,50]
[394853622,1764019700412,151.0,0.00042027,50]
[394853623,1764019700703,237.818391,0.00042027,50]
[394853624,1764019702279,431.48733053,0.00042027,30]
[394853625,1764019702540,285.21169616,0.00042027,30]
[394853626,1764019702853,688.26274444,0.00042027,120]
[394853627,1764019703264,814.98229487,0.00042027,120]
[394853628,1764019703376,282.20826283,0.00042027,30]
[394853629,1764019703445,198.33302432,0.00042027,30]
[394853630,1764019703520,159.962245,0.00042027,50]
[394853631,1764019703591,581.77992162,0.00042027,30]
[394853632,1764019703788,726.57534324,0.00042027,120]
[394853633,1764019703940,240.83228998,0.00042027,90]
[394853634,1764019704001,215.36014029,0.00042027,31]
[394853635,1764019704881,1393.29747508,0.00042027,120]
[394853636,1764019705640,151.0,0.00042027,50]
[394853637,1764019705941,151.0,0.00042027,50]
[394853638,1764019706228,276.322266,0.00042027,50]
[394853639,1764019706286,338.01153957,0.00042027,30]
[394853640,1764019706996,480.99255137,0.00042027,120]
[394853641,1764019707188,756.0,0.00042027,120]
[394853642,1764019707455,481.45777922,0.00042027,30]
[394853643,1764019707899,256.80111722,0.00042027,90]
[394853644,1764019708173,765.323059,0.00042027,120]
[394853645,1764019709952,270.46899658,0.00042027,120]
[394853646,1764019710335,512.2249417,0.00042027,120]
[394853647,1764019710842,236.79320992,0.00042027,120]
[394853649,1764019711527,277.18393059,0.00042027,30]
[394853650,1764019711674,151.0,0.00042027,50]
[394853651,1764019711971,151.0,0.00042027,50]
[394853652,1764019712299,151.0,0.00042027,50]
[394853653,1764019712615,151.0,0.00042027,50]
[394853654,1764019713027,151.0,0.00042027,50]
[394853655,1764019713244,151.0,0.00042027,50]
[394853656,1764019713474,151.0,0.00042027,50]
[394853657,1764019713787,151.0,0.00042027,50]
[394853658,1764019714098,216.371365,0.00042027,50]
[394853659,1764019714624,959.48171913,0.00042027,120]
[394853661,1764019715140,303.01270587,0.00042027,30]
[394853662,1764019716504,1095.07032662,0.00042027,30]
[394853663,1764019716601,194.42799703,0.00042027,120]
[394853664,1764019716635,-588.38060453,0.00015807,2]
[394853665,1764019716825,218.01251771,0.00042027,30]
[394853666,1764019717358,195.78873401,0.00042027,120]
[394853667,1764019717475,711.50614599,0.00042027,120]
[394853668,1764019717738,498.96155539,0.00042027,60]
[394853669,1764019717794,886.96308424,0.00042027,30]
[394853670,1764019717908,19790.17287205,0.00016,4]
[394853671,1764019717932,100000.0,0.00016,4]
[394853672,1764019718135,793.50970876,0.00042027,120]
[394853673,1764019718536,266.074529,0.00042027,50]
[394853674,1764019718820,266.074529,0.00042027,50]
[394853675,1764019718938,1139.34238222,0.00042027,120]
[394853676,1764019719331,266.074529,0.00042027,50]
[394853677,1764019719449,299.17086959,0.00042027,120]
[394853678,1764019719516,166.71047017,0.00042027,120]
[394853679,1764019719593,371.71273334,0.00042027,120]
[394853680,1764019719656,640.67701811,0.00042027,30]
[394853681,1764019719716,266.074529,0.00042027,50]
[394853682,1764019719745,-740.19068473,0.00015807,2]
[394853683,1764019719896,266.074529,0.00042027,50]
[394853684,1764019719956,1060.0,0.00042027,120]
[394853685,1764019720182,266.074529,0.00042027,50]
[394853686,1764019720479,266.074529,0.00042027,50]
[394853687,1764019720542,500.0,0.00042027,120]
[394853688,1764019720678,669.12707929,0.00042027,30]
[394853689,1764019720766,266.074529,0.00042027,50]
[394853690,1764019720875,749.73899812,0.00042027,120]
[394853691,1764019721061,266.074529,0.00042027,50]
[394853692,1764019721210,185.71425934,0.00042027,120]
[394853693,1764019721360,266.074529,0.00042027,50]
[394853694,1764019721661,266.074529,0.00042027,50]
[394853695,1764019721944,266.074529,0.00042027,50]
[394853696,1764019722221,266.074529,0.00042027,50]
[394853697,1764019722428,161.49242916,0.00042027,120]
[394853698,1764019722505,266.074529,0.00042027,50]
[394853699,1764019722561,658.0,0.00042027,120]
[394853700,1764019722777,250.03843561,0.00042027,30]
[394853701,1764019722833,266.074529,0.00042027,50]
[394853702,1764019723216,266.074529,0.00042027,50]
[394853703,1764019723344,266.074529,0.00042027,50]
[394853704,1764019723643,266.074529,0.00042027,50]
[394853705,1764019724052,266.074529,0.00042027,50]
[394853706,1764019724346,266.074537,0.00042027,50]
[394853707,1764019748088,151.0,0.00042027,50]
[394853708,1764019748376,151.0,0.00042027,50]
[394853709,1764019748663,151.0,0.00042027,50]
[394853710,1764019749015,151.0,0.00042027,50]
[394853711,1764019749340,293.125367,0.00042027,50]
[394853712,1764019754330,151.0,0.00042027,50]
[394853713,1764019761759,151.0,0.00042027,50]
[394853714,1764019762060,151.0,0.00042027,50]
[394853715,1764019762359,151.0,0.00042027,50]
[394853716,1764019762675,151.0,0.00042027,50]
[394853717,1764019762977,151.0,0.00042027,50]
[394853718,1764019763147,151.0,0.00042027,50]
[394853719,1764019763707,151.0,0.00042027,50]
[394853720,1764019763998,151.0,0.00042027,50]
[394853721,1764019764722,151.0,0.00042027,50]
[394853722,1764019764798,267.665793,0.00042027,50]
[394853723,1764019765062,151.0,0.00042027,50]
[394853724,1764019765375,151.0,0.00042027,50]
[394853725,1764019769793,151.0,0.00042027,50]
[394853726,1764019769857,151.0,0.00042027,50]
[394853727,1764019770073,151.0,0.00042027,50]
[394853728,1764019770128,151.0,0.00042027,50]
[394853729,1764019770185,151.0,0.00042027,50]
[394853730,1764019770382,151.0,0.00042027,50]
[394853731,1764019770439,151.0,0.00042027,50]
[394853732,1764019770556,151.0,0.00042027,50]
[394853733,1764019770674,151.0,0.00042027,50]
[394853734,1764019770848,180.853537,0.00042027,50]
[394853735,1764019770975,151.0,0.00042027,50]
[394853736,1764019771268,151.0,0.00042027,50]